{"text_format":"1","workbook":"xlsx","n_sheets":5,"sheets":["Inscriptions","Chiffrage Détaillé","Boutons Macro","Références","Feuil1"],"not_rendered":{"charts":0,"images":4,"macros":1,"external_links":1,"defined_names":69,"comments":2,"pivot_tables":0},"unopened":[],"bounds":{"document_bytes":16777216,"sheet_cells":100000,"rows_first":2000,"rows_last":500,"rows_between":2000,"halvings":0,"cell_chars":16384,"cell_head_chars":4096},"cells_cut":0,"cells_raw":0,"read":"whole","date_system":"1900"}

{"sheet":"Inscriptions","index":0,"n_rows":30,"n_cols":31,"rows_kept":30,"cut":false,"hidden":false,"merged":[[7,27,7,28],[0,3,0,12],[7,21,7,22],[7,23,7,25]]}
[null,null,null,"JEUX NATIONAUX D'HIVER\nLA PLAGNE - MONTALBERT - 21 AU 28 JANVIER 2018\n\nRÉCAPITULATIF RÉGION(S)"]
[]
[null,null,null,null,"Mise à jour ","    TOTAL à ENCAISSER :",null,null,{"$f":"SUM(Total_Couts)","v":0}]
[null,null,null,null,"2017-10-04","    TOTAL ENCAISSÉ : ",null,null,{"$f":"SUMIF(Payé,\"OUI\",Total_Couts)","v":0}]
[]
[null,null,null,null,"TOTAL_REGIONS",{"$f":"IF(E6=\"TOTAL_REGIONS\",'Chiffrage Détaillé'!C23,COUNTIF(Inscriptions_AS,E6))","v":0}]
[]
[null,null,"Saisir les données dans l'ordre, de gauche à droite.",null,null,null,"Pour trier sur une colonne, double cliquer sur l'entête associée",null,null,null,null,null,null,null,null,null,null,null,null,null,null,"Tests ESF",null,"Compétitions",null,null,null,"Options"]
["Payé","Date\nd'incription",{"$f":"\"NOM\"&\" (\"&COUNTA(NOM)&\" inscrits)\"","v":"NOM (0 inscrits)"},"Prénom","AS\nRégionale","Statut","N° carte","Société\n(Si  AGT)","Date de Naissance","Sexe",{"$f":"\"Age au \" &TEXT(Au_01_01_année_JNH, \"jj/mm/aa\")","v":"Age au 01/01/18"},"Catégorie","N° Téléphone\n(sans espace)"," Email\n(Préciser bien l'adresse Email)","Transport","Formules Hébergement Séjour","Colocataire 1\n(NOM & Prénom)","Colocataire 2\n(NOM & Prénom)","Alpin\nForfaits / Cours","Fond\nForfait / Cours","Cours Niveau\nSki / Surf",{"$f":"\" Flèche (\"&COUNTA(Flèche)&\")\"","v":" Flèche (0)"},{"$f":"\" Chamois (\"&COUNTA(Chamois)&\")\"","v":" Chamois (0)"},{"$f":"\" Géant Ski (\"&COUNTA(Géant_Ski)&\")\"","v":" Géant Ski (0)"},{"$f":"\" Géant Surf (\"&COUNTA(Géant_Surf)&\")\"","v":" Géant Surf (0)"},{"$f":"\" Fond (\"&COUNTA(Fond)&\")\"","v":" Fond (0)"},{"$f":"\" Eurosport (\"&COUNTA(Eurosport)&\")\"","v":" Eurosport (0)"},{"$f":"\"Airboard   (\"&COUNTA(Option_1)&\")\"","v":"Airboard   (0)"},{"$f":"\"Ski-bob   (\"&COUNTA(Option_2)&\")\"","v":"Ski-bob   (0)"},{"$f":"\"Option-3   (\"&COUNTA(Option_3)&\") Sortie ...\"","v":"Option-3   (0) Sortie ..."},"Total Coûts Participant"]
[null,null,null,null,null,null,null,null,null,null,{"$f":"IF(OR(NOM=\"\",Date_Naissance=\"\"),\"\",DATEDIF(Date_Naissance,Au_01_01_année_JNH,\"y\"))","v":""},{"$f":"IF(OR(NOM=\"\",Date_Naissance=\"\"),\"\",IF(Age_01_01_année_JNH<Cat_junior,\"Junior\",IF(Age_01_01_année_JNH<Cat_senior,\"Sénior\",IF(Age_01_01_année_JNH<Cat_veteran,\"Vétéran 1\",\"Vétéran 2\")))&\" \"&Sexe)","v":""},null,null,null,null,null,null,null,null,null,null,null,null,null,null,null,null,null,null,{"$f":"IF(Hébergement=\"\",0,VLOOKUP(Hébergement,Tableau_Prix_Hebergement,2,FALSE))+IF(RM_Cours=\"\",0,VLOOKUP(RM_Cours,Tableau_Total_RM_Cours,4,FALSE)) +IF(Cours_Fond=\"\",0,VLOOKUP(Cours_Fond,Tableau_Total_RM_Cours,4,FALSE)) +IF(Option_1<>\"x\",0,VLOOKUP(\"Option 1\",Tableau_Options,2,FALSE)) +IF(Option_2<>\"x\",0,VLOOKUP(\"Option 2\",Tableau_Options,2,FALSE)) +IF(Option_3<>\"x\",0,VLOOKUP(\"Option 3\",Tableau_Options,2,FALSE))","v":0}]
[null,null,null,null,null,null,null,null,null,null,{"$f":"IF(OR(NOM=\"\",Date_Naissance=\"\"),\"\",DATEDIF(Date_Naissance,Au_01_01_année_JNH,\"y\"))","v":""},{"$f":"IF(OR(NOM=\"\",Date_Naissance=\"\"),\"\",IF(Age_01_01_année_JNH<Cat_junior,\"Junior\",IF(Age_01_01_année_JNH<Cat_senior,\"Sénior\",IF(Age_01_01_année_JNH<Cat_veteran,\"Vétéran 1\",\"Vétéran 2\")))&\" \"&Sexe)","v":""},null,null,null,null,null,null,null,null,null,null,null,null,null,null,null,null,null,null,{"$f":"IF(Hébergement=\"\",0,VLOOKUP(Hébergement,Tableau_Prix_Hebergement,2,FALSE))+IF(RM_Cours=\"\",0,VLOOKUP(RM_Cours,Tableau_Total_RM_Cours,4,FALSE)) +IF(Cours_Fond=\"\",0,VLOOKUP(Cours_Fond,Tableau_Total_RM_Cours,4,FALSE)) +IF(Option_1<>\"x\",0,VLOOKUP(\"Option 1\",Tableau_Options,2,FALSE)) +IF(Option_2<>\"x\",0,VLOOKUP(\"Option 2\",Tableau_Options,2,FALSE)) +IF(Option_3<>\"x\",0,VLOOKUP(\"Option 3\",Tableau_Options,2,FALSE))","v":0}]
[null,null,null,null,null,null,null,null,null,null,{"$f":"IF(OR(NOM=\"\",Date_Naissance=\"\"),\"\",DATEDIF(Date_Naissance,Au_01_01_année_JNH,\"y\"))","v":""},{"$f":"IF(OR(NOM=\"\",Date_Naissance=\"\"),\"\",IF(Age_01_01_année_JNH<Cat_junior,\"Junior\",IF(Age_01_01_année_JNH<Cat_senior,\"Sénior\",IF(Age_01_01_année_JNH<Cat_veteran,\"Vétéran 1\",\"Vétéran 2\")))&\" \"&Sexe)","v":""},null,null,null,null,null,null,null,null,null,null,null,null,null,null,null,null,null,null,{"$f":"IF(Hébergement=\"\",0,VLOOKUP(Hébergement,Tableau_Prix_Hebergement,2,FALSE))+IF(RM_Cours=\"\",0,VLOOKUP(RM_Cours,Tableau_Total_RM_Cours,4,FALSE)) +IF(Cours_Fond=\"\",0,VLOOKUP(Cours_Fond,Tableau_Total_RM_Cours,4,FALSE)) +IF(Option_1<>\"x\",0,VLOOKUP(\"Option 1\",Tableau_Options,2,FALSE)) +IF(Option_2<>\"x\",0,VLOOKUP(\"Option 2\",Tableau_Options,2,FALSE)) +IF(Option_3<>\"x\",0,VLOOKUP(\"Option 3\",Tableau_Options,2,FALSE))","v":0}]
[null,null,null,null,null,null,null,null,null,null,{"$f":"IF(OR(NOM=\"\",Date_Naissance=\"\"),\"\",DATEDIF(Date_Naissance,Au_01_01_année_JNH,\"y\"))","v":""},{"$f":"IF(OR(NOM=\"\",Date_Naissance=\"\"),\"\",IF(Age_01_01_année_JNH<Cat_junior,\"Junior\",IF(Age_01_01_année_JNH<Cat_senior,\"Sénior\",IF(Age_01_01_année_JNH<Cat_veteran,\"Vétéran 1\",\"Vétéran 2\")))&\" \"&Sexe)","v":""},null,null,null,null,null,null,null,null,null,null,null,null,null,null,null,null,null,null,{"$f":"IF(Hébergement=\"\",0,VLOOKUP(Hébergement,Tableau_Prix_Hebergement,2,FALSE))+IF(RM_Cours=\"\",0,VLOOKUP(RM_Cours,Tableau_Total_RM_Cours,4,FALSE)) +IF(Cours_Fond=\"\",0,VLOOKUP(Cours_Fond,Tableau_Total_RM_Cours,4,FALSE)) +IF(Option_1<>\"x\",0,VLOOKUP(\"Option 1\",Tableau_Options,2,FALSE)) +IF(Option_2<>\"x\",0,VLOOKUP(\"Option 2\",Tableau_Options,2,FALSE)) +IF(Option_3<>\"x\",0,VLOOKUP(\"Option 3\",Tableau_Options,2,FALSE))","v":0}]
[null,null,null,null,null,null,null,null,null,null,{"$f":"IF(OR(NOM=\"\",Date_Naissance=\"\"),\"\",DATEDIF(Date_Naissance,Au_01_01_année_JNH,\"y\"))","v":""},{"$f":"IF(OR(NOM=\"\",Date_Naissance=\"\"),\"\",IF(Age_01_01_année_JNH<Cat_junior,\"Junior\",IF(Age_01_01_année_JNH<Cat_senior,\"Sénior\",IF(Age_01_01_année_JNH<Cat_veteran,\"Vétéran 1\",\"Vétéran 2\")))&\" \"&Sexe)","v":""},null,null,null,null,null,null,null,null,null,null,null,null,null,null,null,null,null,null,{"$f":"IF(Hébergement=\"\",0,VLOOKUP(Hébergement,Tableau_Prix_Hebergement,2,FALSE))+IF(RM_Cours=\"\",0,VLOOKUP(RM_Cours,Tableau_Total_RM_Cours,4,FALSE)) +IF(Cours_Fond=\"\",0,VLOOKUP(Cours_Fond,Tableau_Total_RM_Cours,4,FALSE)) +IF(Option_1<>\"x\",0,VLOOKUP(\"Option 1\",Tableau_Options,2,FALSE)) +IF(Option_2<>\"x\",0,VLOOKUP(\"Option 2\",Tableau_Options,2,FALSE)) +IF(Option_3<>\"x\",0,VLOOKUP(\"Option 3\",Tableau_Options,2,FALSE))","v":0}]
[null,null,null,null,null,null,null,null,null,null,{"$f":"IF(OR(NOM=\"\",Date_Naissance=\"\"),\"\",DATEDIF(Date_Naissance,Au_01_01_année_JNH,\"y\"))","v":""},{"$f":"IF(OR(NOM=\"\",Date_Naissance=\"\"),\"\",IF(Age_01_01_année_JNH<Cat_junior,\"Junior\",IF(Age_01_01_année_JNH<Cat_senior,\"Sénior\",IF(Age_01_01_année_JNH<Cat_veteran,\"Vétéran 1\",\"Vétéran 2\")))&\" \"&Sexe)","v":""},null,null,null,null,null,null,null,null,null,null,null,null,null,null,null,null,null,null,{"$f":"IF(Hébergement=\"\",0,VLOOKUP(Hébergement,Tableau_Prix_Hebergement,2,FALSE))+IF(RM_Cours=\"\",0,VLOOKUP(RM_Cours,Tableau_Total_RM_Cours,4,FALSE)) +IF(Cours_Fond=\"\",0,VLOOKUP(Cours_Fond,Tableau_Total_RM_Cours,4,FALSE)) +IF(Option_1<>\"x\",0,VLOOKUP(\"Option 1\",Tableau_Options,2,FALSE)) +IF(Option_2<>\"x\",0,VLOOKUP(\"Option 2\",Tableau_Options,2,FALSE)) +IF(Option_3<>\"x\",0,VLOOKUP(\"Option 3\",Tableau_Options,2,FALSE))","v":0}]
[null,null,null,null,null,null,null,null,null,null,{"$f":"IF(OR(NOM=\"\",Date_Naissance=\"\"),\"\",DATEDIF(Date_Naissance,Au_01_01_année_JNH,\"y\"))","v":""},{"$f":"IF(OR(NOM=\"\",Date_Naissance=\"\"),\"\",IF(Age_01_01_année_JNH<Cat_junior,\"Junior\",IF(Age_01_01_année_JNH<Cat_senior,\"Sénior\",IF(Age_01_01_année_JNH<Cat_veteran,\"Vétéran 1\",\"Vétéran 2\")))&\" \"&Sexe)","v":""},null,null,null,null,null,null,null,null,null,null,null,null,null,null,null,null,null,null,{"$f":"IF(Hébergement=\"\",0,VLOOKUP(Hébergement,Tableau_Prix_Hebergement,2,FALSE))+IF(RM_Cours=\"\",0,VLOOKUP(RM_Cours,Tableau_Total_RM_Cours,4,FALSE)) +IF(Cours_Fond=\"\",0,VLOOKUP(Cours_Fond,Tableau_Total_RM_Cours,4,FALSE)) +IF(Option_1<>\"x\",0,VLOOKUP(\"Option 1\",Tableau_Options,2,FALSE)) +IF(Option_2<>\"x\",0,VLOOKUP(\"Option 2\",Tableau_Options,2,FALSE)) +IF(Option_3<>\"x\",0,VLOOKUP(\"Option 3\",Tableau_Options,2,FALSE))","v":0}]
[null,null,null,null,null,null,null,null,null,null,{"$f":"IF(OR(NOM=\"\",Date_Naissance=\"\"),\"\",DATEDIF(Date_Naissance,Au_01_01_année_JNH,\"y\"))","v":""},{"$f":"IF(OR(NOM=\"\",Date_Naissance=\"\"),\"\",IF(Age_01_01_année_JNH<Cat_junior,\"Junior\",IF(Age_01_01_année_JNH<Cat_senior,\"Sénior\",IF(Age_01_01_année_JNH<Cat_veteran,\"Vétéran 1\",\"Vétéran 2\")))&\" \"&Sexe)","v":""},null,null,null,null,null,null,null,null,null,null,null,null,null,null,null,null,null,null,{"$f":"IF(Hébergement=\"\",0,VLOOKUP(Hébergement,Tableau_Prix_Hebergement,2,FALSE))+IF(RM_Cours=\"\",0,VLOOKUP(RM_Cours,Tableau_Total_RM_Cours,4,FALSE)) +IF(Cours_Fond=\"\",0,VLOOKUP(Cours_Fond,Tableau_Total_RM_Cours,4,FALSE)) +IF(Option_1<>\"x\",0,VLOOKUP(\"Option 1\",Tableau_Options,2,FALSE)) +IF(Option_2<>\"x\",0,VLOOKUP(\"Option 2\",Tableau_Options,2,FALSE)) +IF(Option_3<>\"x\",0,VLOOKUP(\"Option 3\",Tableau_Options,2,FALSE))","v":0}]
[null,null,null,null,null,null,null,null,null,null,{"$f":"IF(OR(NOM=\"\",Date_Naissance=\"\"),\"\",DATEDIF(Date_Naissance,Au_01_01_année_JNH,\"y\"))","v":""},{"$f":"IF(OR(NOM=\"\",Date_Naissance=\"\"),\"\",IF(Age_01_01_année_JNH<Cat_junior,\"Junior\",IF(Age_01_01_année_JNH<Cat_senior,\"Sénior\",IF(Age_01_01_année_JNH<Cat_veteran,\"Vétéran 1\",\"Vétéran 2\")))&\" \"&Sexe)","v":""},null,null,null,null,null,null,null,null,null,null,null,null,null,null,null,null,null,null,{"$f":"IF(Hébergement=\"\",0,VLOOKUP(Hébergement,Tableau_Prix_Hebergement,2,FALSE))+IF(RM_Cours=\"\",0,VLOOKUP(RM_Cours,Tableau_Total_RM_Cours,4,FALSE)) +IF(Cours_Fond=\"\",0,VLOOKUP(Cours_Fond,Tableau_Total_RM_Cours,4,FALSE)) +IF(Option_1<>\"x\",0,VLOOKUP(\"Option 1\",Tableau_Options,2,FALSE)) +IF(Option_2<>\"x\",0,VLOOKUP(\"Option 2\",Tableau_Options,2,FALSE)) +IF(Option_3<>\"x\",0,VLOOKUP(\"Option 3\",Tableau_Options,2,FALSE))","v":0}]
[null,null,null,null,null,null,null,null,null,null,{"$f":"IF(OR(NOM=\"\",Date_Naissance=\"\"),\"\",DATEDIF(Date_Naissance,Au_01_01_année_JNH,\"y\"))","v":""},{"$f":"IF(OR(NOM=\"\",Date_Naissance=\"\"),\"\",IF(Age_01_01_année_JNH<Cat_junior,\"Junior\",IF(Age_01_01_année_JNH<Cat_senior,\"Sénior\",IF(Age_01_01_année_JNH<Cat_veteran,\"Vétéran 1\",\"Vétéran 2\")))&\" \"&Sexe)","v":""},null,null,null,null,null,null,null,null,null,null,null,null,null,null,null,null,null,null,{"$f":"IF(Hébergement=\"\",0,VLOOKUP(Hébergement,Tableau_Prix_Hebergement,2,FALSE))+IF(RM_Cours=\"\",0,VLOOKUP(RM_Cours,Tableau_Total_RM_Cours,4,FALSE)) +IF(Cours_Fond=\"\",0,VLOOKUP(Cours_Fond,Tableau_Total_RM_Cours,4,FALSE)) +IF(Option_1<>\"x\",0,VLOOKUP(\"Option 1\",Tableau_Options,2,FALSE)) +IF(Option_2<>\"x\",0,VLOOKUP(\"Option 2\",Tableau_Options,2,FALSE)) +IF(Option_3<>\"x\",0,VLOOKUP(\"Option 3\",Tableau_Options,2,FALSE))","v":0}]
[null,null,null,null,null,null,null,null,null,null,{"$f":"IF(OR(NOM=\"\",Date_Naissance=\"\"),\"\",DATEDIF(Date_Naissance,Au_01_01_année_JNH,\"y\"))","v":""},{"$f":"IF(OR(NOM=\"\",Date_Naissance=\"\"),\"\",IF(Age_01_01_année_JNH<Cat_junior,\"Junior\",IF(Age_01_01_année_JNH<Cat_senior,\"Sénior\",IF(Age_01_01_année_JNH<Cat_veteran,\"Vétéran 1\",\"Vétéran 2\")))&\" \"&Sexe)","v":""},null,null,null,null,null,null,null,null,null,null,null,null,null,null,null,null,null,null,{"$f":"IF(Hébergement=\"\",0,VLOOKUP(Hébergement,Tableau_Prix_Hebergement,2,FALSE))+IF(RM_Cours=\"\",0,VLOOKUP(RM_Cours,Tableau_Total_RM_Cours,4,FALSE)) +IF(Cours_Fond=\"\",0,VLOOKUP(Cours_Fond,Tableau_Total_RM_Cours,4,FALSE)) +IF(Option_1<>\"x\",0,VLOOKUP(\"Option 1\",Tableau_Options,2,FALSE)) +IF(Option_2<>\"x\",0,VLOOKUP(\"Option 2\",Tableau_Options,2,FALSE)) +IF(Option_3<>\"x\",0,VLOOKUP(\"Option 3\",Tableau_Options,2,FALSE))","v":0}]
[null,null,null,null,null,null,null,null,null,null,{"$f":"IF(OR(NOM=\"\",Date_Naissance=\"\"),\"\",DATEDIF(Date_Naissance,Au_01_01_année_JNH,\"y\"))","v":""},{"$f":"IF(OR(NOM=\"\",Date_Naissance=\"\"),\"\",IF(Age_01_01_année_JNH<Cat_junior,\"Junior\",IF(Age_01_01_année_JNH<Cat_senior,\"Sénior\",IF(Age_01_01_année_JNH<Cat_veteran,\"Vétéran 1\",\"Vétéran 2\")))&\" \"&Sexe)","v":""},null,null,null,null,null,null,null,null,null,null,null,null,null,null,null,null,null,null,{"$f":"IF(Hébergement=\"\",0,VLOOKUP(Hébergement,Tableau_Prix_Hebergement,2,FALSE))+IF(RM_Cours=\"\",0,VLOOKUP(RM_Cours,Tableau_Total_RM_Cours,4,FALSE)) +IF(Cours_Fond=\"\",0,VLOOKUP(Cours_Fond,Tableau_Total_RM_Cours,4,FALSE)) +IF(Option_1<>\"x\",0,VLOOKUP(\"Option 1\",Tableau_Options,2,FALSE)) +IF(Option_2<>\"x\",0,VLOOKUP(\"Option 2\",Tableau_Options,2,FALSE)) +IF(Option_3<>\"x\",0,VLOOKUP(\"Option 3\",Tableau_Options,2,FALSE))","v":0}]
[null,null,null,null,null,null,null,null,null,null,{"$f":"IF(OR(NOM=\"\",Date_Naissance=\"\"),\"\",DATEDIF(Date_Naissance,Au_01_01_année_JNH,\"y\"))","v":""},{"$f":"IF(OR(NOM=\"\",Date_Naissance=\"\"),\"\",IF(Age_01_01_année_JNH<Cat_junior,\"Junior\",IF(Age_01_01_année_JNH<Cat_senior,\"Sénior\",IF(Age_01_01_année_JNH<Cat_veteran,\"Vétéran 1\",\"Vétéran 2\")))&\" \"&Sexe)","v":""},null,null,null,null,null,null,null,null,null,null,null,null,null,null,null,null,null,null,{"$f":"IF(Hébergement=\"\",0,VLOOKUP(Hébergement,Tableau_Prix_Hebergement,2,FALSE))+IF(RM_Cours=\"\",0,VLOOKUP(RM_Cours,Tableau_Total_RM_Cours,4,FALSE)) +IF(Cours_Fond=\"\",0,VLOOKUP(Cours_Fond,Tableau_Total_RM_Cours,4,FALSE)) +IF(Option_1<>\"x\",0,VLOOKUP(\"Option 1\",Tableau_Options,2,FALSE)) +IF(Option_2<>\"x\",0,VLOOKUP(\"Option 2\",Tableau_Options,2,FALSE)) +IF(Option_3<>\"x\",0,VLOOKUP(\"Option 3\",Tableau_Options,2,FALSE))","v":0}]
[null,null,null,null,null,null,null,null,null,null,{"$f":"IF(OR(NOM=\"\",Date_Naissance=\"\"),\"\",DATEDIF(Date_Naissance,Au_01_01_année_JNH,\"y\"))","v":""},{"$f":"IF(OR(NOM=\"\",Date_Naissance=\"\"),\"\",IF(Age_01_01_année_JNH<Cat_junior,\"Junior\",IF(Age_01_01_année_JNH<Cat_senior,\"Sénior\",IF(Age_01_01_année_JNH<Cat_veteran,\"Vétéran 1\",\"Vétéran 2\")))&\" \"&Sexe)","v":""},null,null,null,null,null,null,null,null,null,null,null,null,null,null,null,null,null,null,{"$f":"IF(Hébergement=\"\",0,VLOOKUP(Hébergement,Tableau_Prix_Hebergement,2,FALSE))+IF(RM_Cours=\"\",0,VLOOKUP(RM_Cours,Tableau_Total_RM_Cours,4,FALSE)) +IF(Cours_Fond=\"\",0,VLOOKUP(Cours_Fond,Tableau_Total_RM_Cours,4,FALSE)) +IF(Option_1<>\"x\",0,VLOOKUP(\"Option 1\",Tableau_Options,2,FALSE)) +IF(Option_2<>\"x\",0,VLOOKUP(\"Option 2\",Tableau_Options,2,FALSE)) +IF(Option_3<>\"x\",0,VLOOKUP(\"Option 3\",Tableau_Options,2,FALSE))","v":0}]
[null,null,null,null,null,null,null,null,null,null,{"$f":"IF(OR(NOM=\"\",Date_Naissance=\"\"),\"\",DATEDIF(Date_Naissance,Au_01_01_année_JNH,\"y\"))","v":""},{"$f":"IF(OR(NOM=\"\",Date_Naissance=\"\"),\"\",IF(Age_01_01_année_JNH<Cat_junior,\"Junior\",IF(Age_01_01_année_JNH<Cat_senior,\"Sénior\",IF(Age_01_01_année_JNH<Cat_veteran,\"Vétéran 1\",\"Vétéran 2\")))&\" \"&Sexe)","v":""},null,null,null,null,null,null,null,null,null,null,null,null,null,null,null,null,null,null,{"$f":"IF(Hébergement=\"\",0,VLOOKUP(Hébergement,Tableau_Prix_Hebergement,2,FALSE))+IF(RM_Cours=\"\",0,VLOOKUP(RM_Cours,Tableau_Total_RM_Cours,4,FALSE)) +IF(Cours_Fond=\"\",0,VLOOKUP(Cours_Fond,Tableau_Total_RM_Cours,4,FALSE)) +IF(Option_1<>\"x\",0,VLOOKUP(\"Option 1\",Tableau_Options,2,FALSE)) +IF(Option_2<>\"x\",0,VLOOKUP(\"Option 2\",Tableau_Options,2,FALSE)) +IF(Option_3<>\"x\",0,VLOOKUP(\"Option 3\",Tableau_Options,2,FALSE))","v":0}]
[null,null,null,null,null,null,null,null,null,null,{"$f":"IF(OR(NOM=\"\",Date_Naissance=\"\"),\"\",DATEDIF(Date_Naissance,Au_01_01_année_JNH,\"y\"))","v":""},{"$f":"IF(OR(NOM=\"\",Date_Naissance=\"\"),\"\",IF(Age_01_01_année_JNH<Cat_junior,\"Junior\",IF(Age_01_01_année_JNH<Cat_senior,\"Sénior\",IF(Age_01_01_année_JNH<Cat_veteran,\"Vétéran 1\",\"Vétéran 2\")))&\" \"&Sexe)","v":""},null,null,null,null,null,null,null,null,null,null,null,null,null,null,null,null,null,null,{"$f":"IF(Hébergement=\"\",0,VLOOKUP(Hébergement,Tableau_Prix_Hebergement,2,FALSE))+IF(RM_Cours=\"\",0,VLOOKUP(RM_Cours,Tableau_Total_RM_Cours,4,FALSE)) +IF(Cours_Fond=\"\",0,VLOOKUP(Cours_Fond,Tableau_Total_RM_Cours,4,FALSE)) +IF(Option_1<>\"x\",0,VLOOKUP(\"Option 1\",Tableau_Options,2,FALSE)) +IF(Option_2<>\"x\",0,VLOOKUP(\"Option 2\",Tableau_Options,2,FALSE)) +IF(Option_3<>\"x\",0,VLOOKUP(\"Option 3\",Tableau_Options,2,FALSE))","v":0}]
[null,null,null,null,null,null,null,null,null,null,{"$f":"IF(OR(NOM=\"\",Date_Naissance=\"\"),\"\",DATEDIF(Date_Naissance,Au_01_01_année_JNH,\"y\"))","v":""},{"$f":"IF(OR(NOM=\"\",Date_Naissance=\"\"),\"\",IF(Age_01_01_année_JNH<Cat_junior,\"Junior\",IF(Age_01_01_année_JNH<Cat_senior,\"Sénior\",IF(Age_01_01_année_JNH<Cat_veteran,\"Vétéran 1\",\"Vétéran 2\")))&\" \"&Sexe)","v":""},null,null,null,null,null,null,null,null,null,null,null,null,null,null,null,null,null,null,{"$f":"IF(Hébergement=\"\",0,VLOOKUP(Hébergement,Tableau_Prix_Hebergement,2,FALSE))+IF(RM_Cours=\"\",0,VLOOKUP(RM_Cours,Tableau_Total_RM_Cours,4,FALSE)) +IF(Cours_Fond=\"\",0,VLOOKUP(Cours_Fond,Tableau_Total_RM_Cours,4,FALSE)) +IF(Option_1<>\"x\",0,VLOOKUP(\"Option 1\",Tableau_Options,2,FALSE)) +IF(Option_2<>\"x\",0,VLOOKUP(\"Option 2\",Tableau_Options,2,FALSE)) +IF(Option_3<>\"x\",0,VLOOKUP(\"Option 3\",Tableau_Options,2,FALSE))","v":0}]
[null,null,null,null,null,null,null,null,null,null,{"$f":"IF(OR(NOM=\"\",Date_Naissance=\"\"),\"\",DATEDIF(Date_Naissance,Au_01_01_année_JNH,\"y\"))","v":""},{"$f":"IF(OR(NOM=\"\",Date_Naissance=\"\"),\"\",IF(Age_01_01_année_JNH<Cat_junior,\"Junior\",IF(Age_01_01_année_JNH<Cat_senior,\"Sénior\",IF(Age_01_01_année_JNH<Cat_veteran,\"Vétéran 1\",\"Vétéran 2\")))&\" \"&Sexe)","v":""},null,null,null,null,null,null,null,null,null,null,null,null,null,null,null,null,null,null,{"$f":"IF(Hébergement=\"\",0,VLOOKUP(Hébergement,Tableau_Prix_Hebergement,2,FALSE))+IF(RM_Cours=\"\",0,VLOOKUP(RM_Cours,Tableau_Total_RM_Cours,4,FALSE)) +IF(Cours_Fond=\"\",0,VLOOKUP(Cours_Fond,Tableau_Total_RM_Cours,4,FALSE)) +IF(Option_1<>\"x\",0,VLOOKUP(\"Option 1\",Tableau_Options,2,FALSE)) +IF(Option_2<>\"x\",0,VLOOKUP(\"Option 2\",Tableau_Options,2,FALSE)) +IF(Option_3<>\"x\",0,VLOOKUP(\"Option 3\",Tableau_Options,2,FALSE))","v":0}]
[null,null,null,null,null,null,null,null,null,null,{"$f":"IF(OR(NOM=\"\",Date_Naissance=\"\"),\"\",DATEDIF(Date_Naissance,Au_01_01_année_JNH,\"y\"))","v":""},{"$f":"IF(OR(NOM=\"\",Date_Naissance=\"\"),\"\",IF(Age_01_01_année_JNH<Cat_junior,\"Junior\",IF(Age_01_01_année_JNH<Cat_senior,\"Sénior\",IF(Age_01_01_année_JNH<Cat_veteran,\"Vétéran 1\",\"Vétéran 2\")))&\" \"&Sexe)","v":""},null,null,null,null,null,null,null,null,null,null,null,null,null,null,null,null,null,null,{"$f":"IF(Hébergement=\"\",0,VLOOKUP(Hébergement,Tableau_Prix_Hebergement,2,FALSE))+IF(RM_Cours=\"\",0,VLOOKUP(RM_Cours,Tableau_Total_RM_Cours,4,FALSE)) +IF(Cours_Fond=\"\",0,VLOOKUP(Cours_Fond,Tableau_Total_RM_Cours,4,FALSE)) +IF(Option_1<>\"x\",0,VLOOKUP(\"Option 1\",Tableau_Options,2,FALSE)) +IF(Option_2<>\"x\",0,VLOOKUP(\"Option 2\",Tableau_Options,2,FALSE)) +IF(Option_3<>\"x\",0,VLOOKUP(\"Option 3\",Tableau_Options,2,FALSE))","v":0}]
[null,null,null,null,null,null,null,null,null,null,{"$f":"IF(OR(NOM=\"\",Date_Naissance=\"\"),\"\",DATEDIF(Date_Naissance,Au_01_01_année_JNH,\"y\"))","v":""},{"$f":"IF(OR(NOM=\"\",Date_Naissance=\"\"),\"\",IF(Age_01_01_année_JNH<Cat_junior,\"Junior\",IF(Age_01_01_année_JNH<Cat_senior,\"Sénior\",IF(Age_01_01_année_JNH<Cat_veteran,\"Vétéran 1\",\"Vétéran 2\")))&\" \"&Sexe)","v":""},null,null,null,null,null,null,null,null,null,null,null,null,null,null,null,null,null,null,{"$f":"IF(Hébergement=\"\",0,VLOOKUP(Hébergement,Tableau_Prix_Hebergement,2,FALSE))+IF(RM_Cours=\"\",0,VLOOKUP(RM_Cours,Tableau_Total_RM_Cours,4,FALSE)) +IF(Cours_Fond=\"\",0,VLOOKUP(Cours_Fond,Tableau_Total_RM_Cours,4,FALSE)) +IF(Option_1<>\"x\",0,VLOOKUP(\"Option 1\",Tableau_Options,2,FALSE)) +IF(Option_2<>\"x\",0,VLOOKUP(\"Option 2\",Tableau_Options,2,FALSE)) +IF(Option_3<>\"x\",0,VLOOKUP(\"Option 3\",Tableau_Options,2,FALSE))","v":0}]
[null,null,null,null,null,null,null,null,null,null,{"$f":"IF(OR(NOM=\"\",Date_Naissance=\"\"),\"\",DATEDIF(Date_Naissance,Au_01_01_année_JNH,\"y\"))","v":""},{"$f":"IF(OR(NOM=\"\",Date_Naissance=\"\"),\"\",IF(Age_01_01_année_JNH<Cat_junior,\"Junior\",IF(Age_01_01_année_JNH<Cat_senior,\"Sénior\",IF(Age_01_01_année_JNH<Cat_veteran,\"Vétéran 1\",\"Vétéran 2\")))&\" \"&Sexe)","v":""},null,null,null,null,null,null,null,null,null,null,null,null,null,null,null,null,null,null,{"$f":"IF(Hébergement=\"\",0,VLOOKUP(Hébergement,Tableau_Prix_Hebergement,2,FALSE))+IF(RM_Cours=\"\",0,VLOOKUP(RM_Cours,Tableau_Total_RM_Cours,4,FALSE)) +IF(Cours_Fond=\"\",0,VLOOKUP(Cours_Fond,Tableau_Total_RM_Cours,4,FALSE)) +IF(Option_1<>\"x\",0,VLOOKUP(\"Option 1\",Tableau_Options,2,FALSE)) +IF(Option_2<>\"x\",0,VLOOKUP(\"Option 2\",Tableau_Options,2,FALSE)) +IF(Option_3<>\"x\",0,VLOOKUP(\"Option 3\",Tableau_Options,2,FALSE))","v":0}]

{"sheet":"Chiffrage Détaillé","index":1,"n_rows":37,"n_cols":15,"rows_kept":37,"cut":false,"hidden":false,"merged":[[25,11,26,11],[27,11,28,11],[29,4,29,5],[25,4,26,4],[27,4,28,4],[11,11,12,11],[13,11,14,11],[6,9,6,10],[6,4,6,6],[11,4,11,5],[24,1,24,2],[15,11,16,11],[15,13,15,14],[13,4,13,6],[24,13,24,14],[17,11,18,11],[24,4,24,6],[18,4,18,5],[21,4,21,5],[22,4,22,5],[17,4,17,5],[3,4,3,5],[0,5,0,11],[1,5,1,11],[6,13,6,14],[3,13,3,14],[4,13,4,14],[3,9,3,10],[4,9,4,10]]}
[null,null,null,null,null,"JEUX NATIONAUX D'HIVER\nLA PLAGNE - MONTALBERT - 21 AU 28 JANVIER 2018"]
[null,null,null,null,null,"CHIFFRAGE DÉTAILLÉ RÉGION(S)"]
[]
[null,null,null,null,"TOTAL_REGIONS",null,null,null,null,"TOTAL à ENCAISSER :",null,{"$f":"IF(Nom_Région=\"TOTAL_REGIONS\",SUM(Total_Couts),SUMPRODUCT((Inscriptions_AS=Nom_Région)*1,(Total_Couts)*1))","v":0},null,"Reste à encaisser"]
[null,{"$f":"Inscriptions!E4","v":"2017-10-04"},null,null,null,null,null,null,null,"TOTAL ENCAISSÉ :",null,{"$f":"IF(Nom_Région=\"TOTAL_REGIONS\",SUMIF(Payé,\"OUI\",Total_Couts),SUMPRODUCT((Inscriptions_AS=Nom_Région)*1,(Payé=\"OUI\")*(Total_Couts)))","v":0},null,{"$f":"L4-L5","v":0}]
[]
[null,"AS Régionales ","Nbre Inscrits",null,"Inscriptions Séjour 7J",null,null,"Nb Chambres ",null,"Répartition",null,null,null,"Courses"]
[null,"ALPES",{"$f":"COUNTIF(Inscriptions_AS,B8)","v":0},null,"Séjour 7 Nuitées - Twin",null,{"$f":"IF(Nom_Région=\"TOTAL_REGIONS\",COUNTIF(Hébergement,\"7 Nuitées - Twin\"),SUMPRODUCT((Inscriptions_AS=Nom_Région)*1,(Hébergement=\"7 Nuitées - Twin\")*1))","v":0},{"$f":"G8/2","v":0},null,"Nb Inscrits",{"$f":"IF(Nom_Région=\"TOTAL_REGIONS\",COUNTA(NOM),SUMPRODUCT((Inscriptions_AS=Nom_Région)*1,(NOM<>\"\")*1))","v":0},null,null,"Test Flèche",{"$f":"IF(Nom_Région=\"TOTAL_REGIONS\",COUNTA(Flèche),SUMPRODUCT((Inscriptions_AS=Nom_Région)*1,(Flèche=\"X\")*1))","v":0}]
[null,"ALSACE",0,null,"Séjour 7 Nuitées - Couple",null,{"$f":"IF(Nom_Région=\"TOTAL_REGIONS\",COUNTIF(Hébergement,\"7 Nuitées - Couple\"),SUMPRODUCT((Inscriptions_AS=Nom_Région)*1,(Hébergement=\"7 Nuitées - Couple\")*1))","v":0},{"$f":"G9/2","v":0},null,"Hommes",{"$f":"IF(Nom_Région=\"TOTAL_REGIONS\",SUMPRODUCT((Sexe=\"H\")*(NOM<>\"\")),SUMPRODUCT((Inscriptions_AS=Nom_Région)*1,(Sexe=\"H\")*(NOM<>\"\")))","v":0},null,null,"Test Chamois",{"$f":"IF(Nom_Région=\"TOTAL_REGIONS\",COUNTA(Chamois),SUMPRODUCT((Inscriptions_AS=Nom_Région)*1,(Chamois=\"X\")*1))","v":0}]
[null,"AQUITAINE",0,null,"Séjour 7 Nuitées - Single",null,{"$f":"IF(Nom_Région=\"TOTAL_REGIONS\",COUNTIF(Hébergement,\"7 Nuitées - Single\"),SUMPRODUCT((Inscriptions_AS=Nom_Région)*1,(Hébergement=\"7 Nuitées - Single\")*1))","v":0},{"$f":"G10","v":0},null,"Femmes",{"$f":"IF(Nom_Région=\"TOTAL_REGIONS\",SUMPRODUCT((Sexe=\"F\")*(NOM<>\"\")),SUMPRODUCT((Inscriptions_AS=Nom_Région)*1,(Sexe=\"F\")*(NOM<>\"\")))","v":0},null,null,"Géant Ski",{"$f":"IF(Nom_Région=\"TOTAL_REGIONS\",COUNTA(Géant_Ski),SUMPRODUCT((Inscriptions_AS=Nom_Région)*1,(Géant_Ski=\"X\")*1))","v":0}]
[null,"BFC",0,null,"Séjour 7 Nuitées - Triple",null,{"$f":"IF(Nom_Région=\"TOTAL_REGIONS\",COUNTIF(Hébergement,\"7 Nuitées - Triple\"),SUMPRODUCT((Inscriptions_AS=Nom_Région)*1,(Hébergement=\"7 Nuitées - Triple\")*1))","v":0},{"$f":"ROUND(G11/3,1)","v":0},null,null,null,null,null,"Géant Surf",{"$f":"IF(Nom_Région=\"TOTAL_REGIONS\",COUNTA(Géant_Surf),SUMPRODUCT((Inscriptions_AS=Nom_Région)*1,(Géant_Surf=\"X\")*1))","v":0}]
[null,"CORSE",0,null,"TOTAL",null,{"$f":"SUM(G8:G11)","v":0},{"$f":"SUM(H8:H11)","v":0},null,"Junior F",{"$f":"IF(Nom_Région=\"TOTAL_REGIONS\",COUNTIF(Categorie,J12),SUMPRODUCT((Inscriptions_AS=Nom_Région)*1,(Categorie=J12)*1))","v":0},"< 18 ans",null,"Fond",{"$f":"IF(Nom_Région=\"TOTAL_REGIONS\",COUNTA(Fond),SUMPRODUCT((Inscriptions_AS=Nom_Région)*1,(Fond=\"X\")*1))","v":0}]
[null,"COTES D'AZUR",0,null,null,null,null,null,null,"Junior H",0,null,null,"Eurosport",{"$f":"IF(Nom_Région=\"TOTAL_REGIONS\",COUNTA(Eurosport),SUMPRODUCT((Inscriptions_AS=Nom_Région)*1,(Eurosport=\"X\")*1))","v":0}]
[null,"LCA",0,null,"Inscriptions Séjour 3J",null,null,"Nb Chambres ",null,"Sénior F",0,"< 41 ans"]
[null,"LIMOUSIN",0,null,"Séjour 4 Nuitées - Twin",null,{"$f":"IF(Nom_Région=\"TOTAL_REGIONS\",COUNTIF(Hébergement,\"4 Nuitées - Twin\"),SUMPRODUCT((Inscriptions_AS=Nom_Région)*1,(Hébergement=\"4 Nuitées - Twin\")*1))","v":0},{"$f":"G15/2","v":0},null,"Sénior H",0]
[null,"MIDI PYRENEES",0,null,"Séjour 4 Nuitées - Couple",null,{"$f":"IF(Nom_Région=\"TOTAL_REGIONS\",COUNTIF(Hébergement,\"4 Nuitées - Couple\"),SUMPRODUCT((Inscriptions_AS=Nom_Région)*1,(Hébergement=\"4 Nuitées - Couple\")*1))","v":0},{"$f":"G16/2","v":0},null,"Vétéran 1 F",0,"< 51 ans",null,"Options"]
[null,"NORD",0,null,"Séjour 4 Nuitées - Triple",null,{"$f":"IF(Nom_Région=\"TOTAL_REGIONS\",COUNTIF(Hébergement,\"4 Nuitées - Triple\"),SUMPRODUCT((Inscriptions_AS=Nom_Région)*1,(Hébergement=\"4 Nuitées - Triple\")*1))","v":0},{"$f":"G17","v":0},null,"Vétéran 1 H",0,null,null,"Airboard",{"$f":"IF(Nom_Région=\"TOTAL_REGIONS\",COUNTA(Option_1),SUMPRODUCT((Inscriptions_AS=Nom_Région)*1,(Option_1=\"X\")*1))","v":0}]
[null,"NORMANDIE",0,null,null,null,null,null,null,"Vétéran 2 F",0,">= 51 ans",null,"Ski-bob",{"$f":"IF(Nom_Région=\"TOTAL_REGIONS\",COUNTA(Option_2),SUMPRODUCT((Inscriptions_AS=Nom_Région)*1,(Option_2=\"X\")*1))","v":0}]
[null,"OUEST",{"$f":"COUNTIF(Inscriptions_AS,B19)","v":0},null,"TOTAL",null,{"$f":"SUM(G15:G18)","v":0},{"$f":"SUM(H15:H18)","v":0},null,"Vétéran 2 H",0,null,null,null,{"$f":"IF(Nom_Région=\"TOTAL_REGIONS\",COUNTA(Option_3),SUMPRODUCT((Inscriptions_AS=Nom_Région)*1,(Option_3=\"X\")*1))","v":0}]
[null,"PARIS",{"$f":"COUNTIF(Inscriptions_AS,B20)","v":0},null,null,null,null,null,null,"TOTAUX",{"$f":"SUM(K12:K19)","v":0}]
[null,"PROVENCE",{"$f":"COUNTIF(Inscriptions_AS,B21)","v":0}]
[null,"RHÔNE",{"$f":"COUNTIF(Inscriptions_AS,B22)","v":0},null,"Forfaits 6j RM Alpin",null,{"$f":"IF(Nom_Région=\"TOTAL_REGIONS\",COUNTIF(RM_Cours,\"RM 6J*\"),SUMPRODUCT((Inscriptions_AS=Nom_Région)*1,(MID(RM_Cours,1,5)=\"RM 6J\")*1))","v":0},null,null,null,null,null,null,"Forfaits 6j Fond",{"$f":"IF(Nom_Région=\"TOTAL_REGIONS\",COUNTIF(Cours_Fond,\"Forfait 6J*\"),SUMPRODUCT((Inscriptions_AS=Nom_Région)*1,(MID(Cours_Fond,1,10)=\"Forfait 6J\")*1))","v":0}]
[null,"TOTAUX",{"$f":"SUM(C8:C22)","v":0},null,"Forfaits 3j RM Alpin",null,{"$f":"IF(Nom_Région=\"TOTAL_REGIONS\",COUNTIF(RM_Cours,\"RM 3J*\"),SUMPRODUCT((Inscriptions_AS=Nom_Région)*1,(MID(RM_Cours,1,5)=\"RM 3J\")*1))","v":0},null,null,null,null,null,null,"Forfaits 2j Fond",{"$f":"IF(Nom_Région=\"TOTAL_REGIONS\",COUNTIF(Cours_Fond,\"Forfait 2J*\"),SUMPRODUCT((Inscriptions_AS=Nom_Région)*1,(MID(Cours_Fond,1,10)=\"Forfait 2J\")*1))","v":0}]
[]
[null,"Transports",null,null,"Inscriptions Cours Ski / Surf",null,null,"Débutant","Moyen","Bon","Compétition",null,null,"Inscription Cours Fond / Biathlon"]
[null,"Voiture",{"$f":"IF(Nom_Région<>\"TOTAL_REGIONS\",SUMPRODUCT((Inscriptions_AS=Nom_Région)*1,(Transport=B26)*1),SUMPRODUCT((Transport=B26)*1))","v":0},null,"Cours Ski","3h30",{"$f":"IF(Nom_Région=\"TOTAL_REGIONS\",COUNTIF(RM_Cours,\"*Ski 3h*\"),SUMPRODUCT((Inscriptions_AS=Nom_Région)*1,(MID(RM_Cours,9,6)=\"Ski 3h\")*1))","v":0},{"$f":"IF(Nom_Région<>\"TOTAL_REGIONS\",SUMPRODUCT((Inscriptions_AS=Nom_Région)*1,(MID(RM_Cours,9,6)=\"Ski 3h\")*1,(Niveau_Ski_Surf=\"DEB\")*1),SUMPRODUCT((MID(RM_Cours,9,6)=\"Ski 3h\")*1,(Niveau_Ski_Surf=\"DEB\")*1))","v":0},{"$f":"IF(Nom_Région<>\"TOTAL_REGIONS\",SUMPRODUCT((Inscriptions_AS=Nom_Région)*1,(MID(RM_Cours,9,6)=\"Ski 3h\")*1,(Niveau_Ski_Surf=\"MOY\")*1),SUMPRODUCT((MID(RM_Cours,9,6)=\"Ski 3h\")*1,(Niveau_Ski_Surf=\"MOY\")*1))","v":0},{"$f":"IF(Nom_Région<>\"TOTAL_REGIONS\",SUMPRODUCT((Inscriptions_AS=Nom_Région)*1,(MID(RM_Cours,9,6)=\"Ski 3h\")*1,(Niveau_Ski_Surf=\"BON\")*1),SUMPRODUCT((MID(RM_Cours,9,6)=\"Ski 3h\")*1,(Niveau_Ski_Surf=\"BON\")*1))","v":0},{"$f":"IF(Nom_Région<>\"TOTAL_REGIONS\",SUMPRODUCT((Inscriptions_AS=Nom_Région)*1,(MID(RM_Cours,9,6)=\"Ski 3h\")*1,(Niveau_Ski_Surf=\"COMP\")*1),SUMPRODUCT((MID(RM_Cours,9,6)=\"Ski 3h\")*1,(Niveau_Ski_Surf=\"COMP\")*1))","v":0},{"$f":"G26+G27","v":0},null,"Cours 2h / 1J Fond",{"$f":"IF(Nom_Région=\"TOTAL_REGIONS\",COUNTIF(Cours_Fond,\"*1J F*\"),SUMPRODUCT((Inscriptions_AS=Nom_Région)*1,(MID(Cours_Fond,14,4)=\"1J F\")*1))","v":0}]
[null,"Minibus",{"$f":"IF(Nom_Région<>\"TOTAL_REGIONS\",SUMPRODUCT((Inscriptions_AS=Nom_Région)*1,(Transport=B27)*1),SUMPRODUCT((Transport=B27)*1))","v":0},null,null,"5h30",{"$f":"IF(Nom_Région=\"TOTAL_REGIONS\",COUNTIF(RM_Cours,\"*Ski 5h*\"),SUMPRODUCT((Inscriptions_AS=Nom_Région)*1,(MID(RM_Cours,9,6)=\"Ski 5h\")*1))","v":0},{"$f":"IF(Nom_Région<>\"TOTAL_REGIONS\",SUMPRODUCT((Inscriptions_AS=Nom_Région)*1,(MID(RM_Cours,9,6)=\"Ski 5h\")*1,(Niveau_Ski_Surf=\"DEB\")*1),SUMPRODUCT((MID(RM_Cours,9,6)=\"Ski 5h\")*1,(Niveau_Ski_Surf=\"DEB\")*1))","v":0},{"$f":"IF(Nom_Région<>\"TOTAL_REGIONS\",SUMPRODUCT((Inscriptions_AS=Nom_Région)*1,(MID(RM_Cours,9,6)=\"Ski 5h\")*1,(Niveau_Ski_Surf=\"MOY\")*1),SUMPRODUCT((MID(RM_Cours,9,6)=\"Ski 5h\")*1,(Niveau_Ski_Surf=\"MOY\")*1))","v":0},{"$f":"IF(Nom_Région<>\"TOTAL_REGIONS\",SUMPRODUCT((Inscriptions_AS=Nom_Région)*1,(MID(RM_Cours,9,6)=\"Ski 5h\")*1,(Niveau_Ski_Surf=\"BON\")*1),SUMPRODUCT((MID(RM_Cours,9,6)=\"Ski 5h\")*1,(Niveau_Ski_Surf=\"BON\")*1))","v":0},{"$f":"IF(Nom_Région<>\"TOTAL_REGIONS\",SUMPRODUCT((Inscriptions_AS=Nom_Région)*1,(MID(RM_Cours,9,6)=\"Ski 5h\")*1,(Niveau_Ski_Surf=\"COMP\")*1),SUMPRODUCT((MID(RM_Cours,9,6)=\"Ski 5h\")*1,(Niveau_Ski_Surf=\"COMP\")*1))","v":0},null,null,"Cours 2h / 2J Fond",{"$f":"IF(Nom_Région=\"TOTAL_REGIONS\",COUNTIF(Cours_Fond,\"*2J F*\"),SUMPRODUCT((Inscriptions_AS=Nom_Région)*1,(MID(Cours_Fond,14,4)=\"2J F\")*1))","v":0}]
[null,"Train",{"$f":"IF(Nom_Région<>\"TOTAL_REGIONS\",SUMPRODUCT((Inscriptions_AS=Nom_Région)*1,(Transport=B28)*1),SUMPRODUCT((Transport=B28)*1))","v":0},null,"Cours Surf","3h30",{"$f":"IF(Nom_Région=\"TOTAL_REGIONS\",COUNTIF(RM_Cours,\"*Surf 3h*\"),SUMPRODUCT((Inscriptions_AS=Nom_Région)*1,(MID(RM_Cours,9,7)=\"Surf 3h\")*1))","v":0},{"$f":"IF(Nom_Région<>\"TOTAL_REGIONS\",SUMPRODUCT((Inscriptions_AS=Nom_Région)*1,(MID(RM_Cours,9,6)=\"Surf 3\")*1,(Niveau_Ski_Surf=\"DEB\")*1),SUMPRODUCT((MID(RM_Cours,9,6)=\"Surf 3\")*1,(Niveau_Ski_Surf=\"DEB\")*1))","v":0},{"$f":"IF(Nom_Région<>\"TOTAL_REGIONS\",SUMPRODUCT((Inscriptions_AS=Nom_Région)*1,(MID(RM_Cours,9,6)=\"Surf 3\")*1,(Niveau_Ski_Surf=\"MOY\")*1),SUMPRODUCT((MID(RM_Cours,9,6)=\"Surf 3\")*1,(Niveau_Ski_Surf=\"MOY\")*1))","v":0},{"$f":"IF(Nom_Région<>\"TOTAL_REGIONS\",SUMPRODUCT((Inscriptions_AS=Nom_Région)*1,(MID(RM_Cours,9,6)=\"Surf 3\")*1,(Niveau_Ski_Surf=\"BON\")*1),SUMPRODUCT((MID(RM_Cours,9,6)=\"Surf 3\")*1,(Niveau_Ski_Surf=\"BON\")*1))","v":0},{"$f":"IF(Nom_Région<>\"TOTAL_REGIONS\",SUMPRODUCT((Inscriptions_AS=Nom_Région)*1,(MID(RM_Cours,9,6)=\"Surf 3\")*1,(Niveau_Ski_Surf=\"COMP\")*1),SUMPRODUCT((MID(RM_Cours,9,6)=\"Surf 3\")*1,(Niveau_Ski_Surf=\"COMP\")*1))","v":0},{"$f":"G28+G29","v":0},null,"Cours 2h / 3J Fond",{"$f":"IF(Nom_Région=\"TOTAL_REGIONS\",COUNTIF(Cours_Fond,\"*3J F*\"),SUMPRODUCT((Inscriptions_AS=Nom_Région)*1,(MID(Cours_Fond,14,4)=\"3J F\")*1))","v":0}]
[null,"Train AS",{"$f":"IF(Nom_Région<>\"TOTAL_REGIONS\",SUMPRODUCT((Inscriptions_AS=Nom_Région)*1,(Transport=B29)*1),SUMPRODUCT((Transport=B29)*1))","v":0},null,null,"5h30",{"$f":"IF(Nom_Région=\"TOTAL_REGIONS\",COUNTIF(RM_Cours,\"*Surf 5h*\"),SUMPRODUCT((Inscriptions_AS=Nom_Région)*1,(MID(RM_Cours,9,7)=\"Surf 5h\")*1))","v":0},{"$f":"IF(Nom_Région<>\"TOTAL_REGIONS\",SUMPRODUCT((Inscriptions_AS=Nom_Région)*1,(MID(RM_Cours,9,6)=\"Surf 5\")*1,(Niveau_Ski_Surf=\"DEB\")*1),SUMPRODUCT((MID(RM_Cours,9,6)=\"Surf 5\")*1,(Niveau_Ski_Surf=\"DEB\")*1))","v":0},{"$f":"IF(Nom_Région<>\"TOTAL_REGIONS\",SUMPRODUCT((Inscriptions_AS=Nom_Région)*1,(MID(RM_Cours,9,6)=\"Surf 5\")*1,(Niveau_Ski_Surf=\"MOY\")*1),SUMPRODUCT((MID(RM_Cours,9,6)=\"Surf 5\")*1,(Niveau_Ski_Surf=\"MOY\")*1))","v":0},{"$f":"IF(Nom_Région<>\"TOTAL_REGIONS\",SUMPRODUCT((Inscriptions_AS=Nom_Région)*1,(MID(RM_Cours,9,6)=\"Surf 5\")*1,(Niveau_Ski_Surf=\"BON\")*1),SUMPRODUCT((MID(RM_Cours,9,6)=\"Surf 5\")*1,(Niveau_Ski_Surf=\"BON\")*1))","v":0},{"$f":"IF(Nom_Région<>\"TOTAL_REGIONS\",SUMPRODUCT((Inscriptions_AS=Nom_Région)*1,(MID(RM_Cours,9,6)=\"Surf 5\")*1,(Niveau_Ski_Surf=\"COMP\")*1),SUMPRODUCT((MID(RM_Cours,9,6)=\"Surf 5\")*1,(Niveau_Ski_Surf=\"COMP\")*1))","v":0}]
[null,null,null,null,"TOTAL Ski / Surf",null,{"$f":"SUM(G26:G29)","v":0},{"$f":"SUM(H26:H29)","v":0},{"$f":"SUM(I26:I29)","v":0},{"$f":"SUM(J26:J29)","v":0},{"$f":"SUM(K26:K29)","v":0}]
[]
[null,"Statistiques","FTV","INA","RF","TDF","Total\nAGT","CJT","EXT","ENF - & +","Total\nHors AGT"]
[null,"Nb Agents",{"$f":"IF(Nom_Région=\"TOTAL_REGIONS\",COUNTIF(Société,C32),SUMPRODUCT((Inscriptions_AS=Nom_Région)*1,(Société=C32)*1))","v":0},{"$f":"IF(Nom_Région=\"TOTAL_REGIONS\",COUNTIF(Société,D32),SUMPRODUCT((Inscriptions_AS=Nom_Région)*1,(Société=D32)*1))","v":0},{"$f":"IF(Nom_Région=\"TOTAL_REGIONS\",COUNTIF(Société,E32),SUMPRODUCT((Inscriptions_AS=Nom_Région)*1,(Société=E32)*1))","v":0},{"$f":"IF(Nom_Région=\"TOTAL_REGIONS\",COUNTIF(Société,F32),SUMPRODUCT((Inscriptions_AS=Nom_Région)*1,(Société=F32)*1))","v":0},{"$f":"SUM(C33:F33)","v":0},{"$f":"IF(Nom_Région=\"TOTAL_REGIONS\",COUNTIF(Statut,H32),SUMPRODUCT((Inscriptions_AS=Nom_Région)*1,(Statut=H32)*1))","v":0},{"$f":"IF(Nom_Région=\"TOTAL_REGIONS\",COUNTIF(Statut,I32),SUMPRODUCT((Inscriptions_AS=Nom_Région)*1,(Statut=I32)*1))","v":0},{"$f":"IF(Nom_Région=\"TOTAL_REGIONS\",COUNTIF(Statut,\"ENF?\"),SUMPRODUCT((Inscriptions_AS=Nom_Région)*1,(MID(Statut,1,3)=\"ENF\")*1))","v":0},{"$f":"SUM(H33:J33)","v":0}]
[null,"% / Total Agents",{"$f":"IF(C33<>0,IF(Nom_Région=\"TOTAL_REGIONS\",C33/COUNTIF(Statut,\"AGT\"),C33/Total_Agents),0)","v":0},{"$f":"IF(D33<>0,IF(Nom_Région=\"TOTAL_REGIONS\",D33/COUNTIF(Statut,\"AGT\"),D33/Total_Agents),0)","v":0},{"$f":"IF(E33<>0,IF(Nom_Région=\"TOTAL_REGIONS\",E33/COUNTIF(Statut,\"AGT\"),E33/Total_Agents),0)","v":0},{"$f":"IF(F33<>0,IF(Nom_Région=\"TOTAL_REGIONS\",F33/COUNTIF(Statut,\"AGT\"),F33/Total_Agents),0)","v":0},{"$f":"SUM(C34:F34)","v":0}]
[null,"% / Total Participants",{"$f":"IF(C33<>0,IF(Nom_Région=\"TOTAL_REGIONS\",C33/Total_Participant,C33/VLOOKUP(Nom_Région,Tableau_Régions,2)),0)","v":0},{"$f":"IF(D33<>0,IF(Nom_Région=\"TOTAL_REGIONS\",D33/Total_Participant,D33/VLOOKUP(Nom_Région,Tableau_Régions,2)),0)","v":0},{"$f":"IF(E33<>0,IF(Nom_Région=\"TOTAL_REGIONS\",E33/Total_Participant,E33/VLOOKUP(Nom_Région,Tableau_Régions,2)),0)","v":0},{"$f":"IF(F33<>0,IF(Nom_Région=\"TOTAL_REGIONS\",F33/Total_Participant,F33/VLOOKUP(Nom_Région,Tableau_Régions,2)),0)","v":0},{"$f":"SUM(C35:F35)","v":0},{"$f":"IF(H33<>0,IF(Nom_Région=\"TOTAL_REGIONS\",H33/Total_Participant,H33/VLOOKUP(Nom_Région,Tableau_Régions,2)),0)","v":0},{"$f":"IF(I33<>0,IF(Nom_Région=\"TOTAL_REGIONS\",I33/Total_Participant,I33/VLOOKUP(Nom_Région,Tableau_Régions,2)),0)","v":0},{"$f":"IF(J33<>0,IF(Nom_Région=\"TOTAL_REGIONS\",J33/Total_Participant,J33/VLOOKUP(Nom_Région,Tableau_Régions,2)),0)","v":0},{"$f":"SUM(H35:J35)","v":0}]
[null,null,null,null,null,null,null,null,null,"ENF- : < 18 ans"]
[null,null,null,null,null,null,null,null,null,"ENF+ : 18 à 25 ans"]

{"sheet":"Boutons Macro","index":2,"n_rows":35,"n_cols":8,"rows_kept":35,"cut":false,"hidden":false,"merged":[]}
[]
["Bouton Import Inscription Individuelle"]
[]
["Prérequis :","- Placer le fichier Inscription Individuelle (un seul à la fois) dans le même répertoire que le fichier REGION ou RECAP_REGION"]
[null,"- Vérifier que le fichier Inscription Individuelle a le nom suivant (sinon le corriger) : ",null,null,null,null,null,{"$f":"Références!D29","v":"JNH_LA_PLAGNE_2018_INSCRIPTION"}]
[null,"- Ouvrir le fichier Inscription Individuelle"]
[null,"- Contrôler son remplissage correcte,"]
[]
["Informations :","Le fichier Inscription sera renomé avec rajout du NOM & Prénom du Participant"]
[]
[]
[]
[]
[]
[]
[]
["Bouton Import Inscriptions Région"]
[]
["Prérequis :","- Placer le fichier REGION d'une AS (un seul à la fois), dans le même répertoire que le fichier RECAP_ REGIONS"]
[null,"- Vérifier que le fichier REGION a le nom suivant (sinon le corriger) : ",null,null,null,null,{"$f":"Références!D27","v":"JNH_LA_PLAGNE_2018_REGION"}]
[null,"- Ouvrir le fichier Inscriptions Région"]
[null,"- Contrôler le bon format de l'onglet \" Inscriptions \" et son remplissage correcte,"]
[null,"   et surtout le champs AS (ligne 6) qui doit impérativement renseigné le nom de l'AS"]
[]
["Informations :","Le fichier AS sera renomé avec rajout du NOM de l'AS"]
[]
[]
[]
[]
[]
[]
[]
["Bouton Suppression Lignes"]
[]
["Prérequis :","ATTENTION : Bien sélectionner au préalable, la ou les lignes complètes à supprimer dans l'onglet Inscriptions"]

{"sheet":"Références","index":3,"n_rows":36,"n_cols":31,"rows_kept":36,"cut":false,"hidden":true,"merged":[[0,2,0,6],[1,2,1,6],[19,6,20,6],[28,3,28,5],[24,3,24,5],[26,3,26,5]]}
[null,null,"JEUX NATIONAUX D'HIVER\nLA PLAGNE-MONTALBERT - 21 AU 28 JANVIER 2018"]
[null,null,"RÉFÉRENCES"]
[]
["Liste AS","Liste Séjour","Liste Prix Séjour","Activité\nListe Choix sur 6J","Liste Prix Forfait","Liste Prix Cours","Liste Total\nRM + COURS","Liste Niveau Ski"]
["ALPES","7 Nuitées - Twin",465,"RM 6J Alpin",175,null,{"$f":"E5+F5","v":175},"COMP"]
["ALSACE","7 Nuitées - Couple",465,"RM 6J + SKI 3h30",175,79,254,"BON"]
["AQUITAINE","7 Nuitées - Single",595,"RM 6J + SKI 5h30",175,124,299,"MOY"]
["BFC","7 Nuitées - Triple",{"$f":"425","v":425},"RM 6J + SURF 3h30",175,79,254,"DEB"]
["CORSE","4 Nuitées - Twin",300,null,null,null,0,"Liste Société"]
["COTES D'AZUR","4 Nuitées - Couple",300,"Forfait 6J Fond",null,null,0,"FTV"]
["LCA","4 Nuitées - Triple",280,"Cours 2H - 1J Fond",null,20,{"$f":"E11+F11","v":20},"INA"]
["LIMOUSIN",null,null,"Cours 2H - 2J Fond",null,40,{"$f":"E12+F12","v":40},"RF"]
["MIDI PYRENEES","Options","Tarifs","Cours 2H - 3J Fond",null,60,{"$f":"E13+F13","v":60},"TDF"]
["NORD","Option 1",17,"Liste Choix sur 2J","Liste Prix Forfaits"]
["NORMANDIE","Option 2",100,"RM 3J Alpin",104,null,{"$f":"E15+F15","v":104}]
["OUEST",null,null,null,null,null,{"$f":"E16+F16","v":0}]
["PARIS"]
["PROVENCE",null,null,"A mettre à jour",null,"Junior : <",18]
["RHÔNE",null,"Au 01/01/année JNH :","2018-01-01",null,"Senior : <",41]
["TOTAL_REGIONS",null,null,null,null,"Vétéran 1 : <",51]
[null,null,null,null,null,"Vétéran 2 : >="]
[]
[]
[]
["Nom du fichier RECAP REGIONS (Version 1) :",null,null,"JNH_LA_PLAGNE_2018_RECAP_REGIONS"]
[]
["Nom du fichier Inscriptions Région :",null,null,"JNH_LA_PLAGNE_2018_REGION"]
[]
["Nom du fichier Inscription Individuelle :",null,null,"JNH_LA_PLAGNE_2018_INSCRIPTION"]
[]
["Mdp pour Protection (onglet Inscription, Classeur et macros VBA) :",null,null,null,"pvarga"]
[null,"(mais sans MdP pour les autres onglets)"]
[]
[]
["             Ligner_Ref : Ne pas supprimer ni modifier (taille et emplacement ligne 36)"]
[null,null,null,null,null,null,null,null,null,null,{"$f":"IF(OR(NOM=\"\",Date_Naissance=\"\"),\"\",DATEDIF(Date_Naissance,Au_01_01_année_JNH,\"y\"))","v":{"$error":"#VALUE!"}},{"$f":"IF(OR(NOM=\"\",Date_Naissance=\"\"),\"\",IF(Age_01_01_année_JNH<Cat_junior,\"Junior\",IF(Age_01_01_année_JNH<Cat_senior,\"Sénior\",IF(Age_01_01_année_JNH<Cat_veteran,\"Vétéran 1\",\"Vétéran 2\")))&\" \"&Sexe)","v":{"$error":"#VALUE!"}},null,null,null,null,null,null,null,null,null,null,null,null,null,null,null,null,null,null,{"$f":"IF(Hébergement=\"\",0,VLOOKUP(Hébergement,Tableau_Prix_Hebergement,2,FALSE))+IF(RM_Cours=\"\",0,VLOOKUP(RM_Cours,Tableau_Total_RM_Cours,4,FALSE)) +IF(Cours_Fond=\"\",0,VLOOKUP(Cours_Fond,Tableau_Total_RM_Cours,4,FALSE)) +IF(Option_1<>\"x\",0,VLOOKUP(\"Option 1\",Tableau_Options,2,FALSE)) +IF(Option_2<>\"x\",0,VLOOKUP(\"Option 2\",Tableau_Options,2,FALSE)) +IF(Option_3<>\"x\",0,VLOOKUP(\"Option 3\",Tableau_Options,2,FALSE))","v":{"$error":"#VALUE!"}}]

{"sheet":"Feuil1","index":4,"n_rows":0,"n_cols":0,"rows_kept":0,"cut":false,"hidden":true,"merged":[]}